bitfinex/quotes_ETHUSD_20260227
["timestamp","ask_amount","ask_price","bid_price","bid_amount"]
[1772202987596,18.70628815,1953.8,1952.6,1.28033346]
[1772202987803,18.065383,1953.5,1952.1,1.28175816]
[1772202988099,1.318,1953.8,1952.2,1.12164424]
[1772202988493,0.00153886,1954.0,1952.2,1.12164424]
[1772202988671,1.318,1953.9,1952.4,1.12164424]
[1772202988866,0.00153886,1954.0,1952.5,0.18685624]
[1772202989097,0.00153886,1954.0,1952.8,1.12164424]
[1772202989673,1.31853886,1954.0,1952.8,1.12164424]
[1772202990182,0.00153886,1954.0,1952.8,1.12164424]
[1772202990586,0.00153886,1954.0,1952.7,2.38327858]
[1772202990587,0.00153886,1954.0,1953.0,1.12164424]
[1772202990893,0.00153886,1954.0,1953.2,1.12164424]
[1772202991095,0.00153886,1954.0,1953.4,1.12164424]
[1772202991782,1.27890321,1954.8,1953.4,1.12164424]
[1772202992623,1.317,1954.9,1953.6,1.12164424]
[1772202993093,2.59584287,1954.9,1953.8,1.12164424]
[1772202993479,1.27884613,1954.9,1953.8,1.12164424]
[1772202993679,1.28034709,1955.0,1953.8,1.12164424]
[1772202994481,0.00153886,1955.0,1953.8,1.12164424]
[1772202994681,1.27844541,1955.5,1954.2,1.12164424]
[1772202994880,2.59442745,1955.6,1954.2,1.12164424]
[1772202995081,2.59442745,1955.6,1954.4,1.12164424]
[1772202995082,0.001,1955.6,1954.4,1.12164424]
[1772202995325,1.27938067,1955.6,1954.5,2.22364424]
[1772202995480,6.728376,1955.5,1954.2,1.27924829]
[1772202995822,2.155752,1955.5,1954.2,1.27924829]
[1772202996186,1.27938067,1955.6,1954.3,1.12164424]
[1772202996523,0.001,1955.6,1954.3,1.12164424]
[1772202996889,1.27939205,1955.6,1954.3,1.12164424]
[1772202997126,0.001,1955.6,1954.4,1.27916496]
[1772202998203,0.001,1955.6,1954.4,2.4008092]
[1772202998409,0.001,1955.6,1954.4,1.27916496]
[1772202998606,0.001,1955.6,1954.2,5.11708295]
[1772202998794,7.489451,1955.5,1954.2,5.11708295]
[1772202998982,2.008235,1955.5,1954.2,5.11708295]
[1772202999401,1.27851079,1955.4,1954.2,6.23116188]
[1772202999645,1.27848646,1955.5,1954.3,1.11407893]
[1772202999933,5.11459106,1955.6,1954.3,1.11407893]
[1772202999934,1.2794296,1955.6,1954.3,1.11407893]
[1772203000834,1.2794296,1955.6,1954.2,5.11708295]
[1772203001043,1.2794296,1955.6,1954.2,6.20135916]
[1772203001202,0.001,1955.6,1954.3,1.08427621]
[1772203001531,0.00153886,1956.0,1954.9,1.08427621]
[1772203001735,0.00153886,1956.0,1955.1,1.08427621]
[1772203002435,1.27966247,1956.0,1955.0,1.104]
[1772203003413,0.00153886,1956.0,1955.1,1.27870697]
[1772203003803,0.00153886,1956.0,1955.1,2.36298318]
[1772203004011,0.00153886,1956.0,1954.7,1.27892514]
[1772203004442,0.00153886,1956.0,1954.3,0.065536]
[1772203004443,1.07907698,1955.8,1954.3,1.27923041]
[1772203004616,1.312,1955.7,1954.3,1.27923041]
[1772203005050,2.39107698,1955.7,1954.3,1.27923041]
[1772203005209,1.07907698,1955.6,1954.3,1.27923041]
[1772203005607,1.27844541,1955.5,1954.3,1.27923041]
[1772203005911,2.58944541,1955.5,1954.1,5.10912337]
[1772203006510,3.66852239,1955.5,1954.1,1.27929678]
[1772203006710,3.66852239,1955.5,1954.2,1.08427621]
[1772203006711,1.27844541,1955.5,1954.2,1.08427621]
[1772203006942,10.11108862,1955.9,1954.2,1.08427621]
[1772203007269,1.2782493,1955.8,1954.2,1.08427621]
[1772203007473,1.2782493,1955.8,1954.4,1.08427621]
[1772203007697,0.001,1955.9,1954.6,1.08427621]
[1772203008059,0.001,1955.9,1954.8,1.08427621]
[1772203008541,1.308,1956.9,1955.2,1.08427621]
[1772203008742,1.27904343,1957.0,1955.6,1.08427621]
[1772203008942,0.00153886,1957.0,1955.8,1.08427621]
[1772203009142,0.00153886,1957.0,1956.0,1.08427621]
[1772203009572,0.00153886,1957.0,1956.1,1.27805326]
[1772203010089,0.00153886,1957.0,1956.2,1.08427621]
[1772203010379,0.00153886,1957.0,1956.4,1.08427621]
[1772203010625,0.001,1957.8,1956.4,1.08427621]
[1772203010741,0.001,1957.8,1956.7,1.08427621]
[1772203011076,1.27794528,1957.8,1956.7,1.08427621]
[1772203011279,1.27794528,1957.8,1956.2,3.58119276]
[1772203011501,4.141053,1957.7,1956.3,1.1]
[1772203011793,1.27707396,1957.6,1956.4,1.27785728]
[1772203012740,5.10829587,1957.7,1956.5,1.08427621]
[1772203012741,1.27704788,1957.7,1956.5,1.08427621]
[1772203012945,1.27797123,1957.8,1956.5,1.08427621]
[1772203013581,5.10518188,1958.8,1957.2,1.08427621]
[1772203013788,5.10518188,1958.8,1957.4,1.27720445]
[1772203014573,1.2762916,1958.8,1957.5,1.08427621]
[1772203014746,1.27627381,1958.9,1957.5,1.08427621]
[1772203015072,1.27627381,1958.9,1957.6,1.098]
[1772203015244,2.35535079,1958.9,1957.4,1.27720445]
[1772203015441,2.35535079,1958.9,1957.4,2.37520445]
[1772203016051,1.27627381,1958.9,1957.5,1.08427621]
[1772203016278,1.27774319,1959.0,1957.5,1.08427621]
[1772203016642,1.27774319,1959.0,1957.8,1.08427621]
[1772203016643,1.277702,1959.0,1957.8,1.08427621]
[1772203017072,3.65977898,1959.0,1957.7,1.096]
[1772203017680,1.07907698,1958.8,1957.4,1.27720445]
[1772203017847,1.27635676,1958.7,1957.4,1.27720445]
[1772203018049,2.57833546,1958.8,1957.4,2.36148066]
[1772203018245,2.57833546,1958.8,1957.1,1.27740023]
[1772203018246,1.07907698,1958.7,1957.1,1.27740023]
[1772203018564,2.741396,1958.5,1957.0,1.27895993]
[1772203018751,2.888396,1958.5,1957.0,1.27895993]
[1772203018954,0.001,1958.7,1957.0,1.27895993]
[1772203018955,1.07907698,1958.4,1957.0,1.27895993]
[1772203019147,0.001,1958.7,1957.0,1.27899728]
[1772203019148,1.07907698,1958.2,1957.0,1.27899728]
[1772203019355,4.0,1958.1,1957.0,1.27898494]
[1772203019677,2.38407698,1958.1,1957.0,1.27898784]
[1772203019878,1.27681307,1958.0,1957.0,0.00153886]
[1772203020578,1.27642281,1958.6,1957.2,1.08427621]
[1772203020875,1.27642281,1958.6,1957.3,1.098]
[1772203021076,1.27642281,1958.6,1957.3,2.18227621]
[1772203021382,1.07907698,1958.2,1957.0,0.00153886]
[1772203021678,1.306,1958.1,1957.0,0.00153886]
[1772203022180,1.27681307,1958.0,1957.0,0.00153886]
[1772203022380,6.18632927,1958.2,1957.0,0.00153886]
[1772203022381,6.18592577,1958.2,1957.0,0.00153886]
[1772203022552,1.27653008,1958.5,1957.1,1.08427621]
[1772203022871,0.001,1958.7,1957.5,1.27113245]
[1772203023375,1.27736275,1958.7,1957.5,1.08427621]
[1772203023584,1.27736275,1958.7,1957.3,0.972]
[1772203023883,1.27736275,1958.7,1957.3,2.05627621]
[1772203024071,0.001,1958.7,1957.5,1.2771392]
[1772203024275,0.001,1958.7,1957.5,2.36141541]
[1772203024672,0.001,1958.7,1957.6,1.08427621]
[1772203025465,0.001,1958.7,1957.8,1.08427621]
[1772203025671,2.60021537,1959.9,1958.1,1.33666845]
[1772203025871,0.00153886,1960.0,1958.5,0.18685624]
[1772203026083,1.08061584,1960.0,1958.7,1.27635676]
[1772203026582,0.00153886,1960.0,1958.7,2.36063297]
[1772203026984,0.00153886,1960.0,1958.8,1.08427621]
[1772203027353,1.08061584,1960.0,1958.7,1.27635676]
[1772203027561,0.00153886,1960.0,1958.7,2.36063297]
[1772203027768,0.00153886,1960.0,1958.8,1.08427621]
[1772203027980,0.00153886,1960.0,1958.9,1.33666845]
[1772203028191,0.00153886,1960.0,1959.3,1.08427621]
[1772203028556,0.001,1960.7,1959.6,1.08427621]
[1772203028761,0.001,1960.7,1959.2,1.08427621]
[1772203028991,0.001,1960.7,1959.0,1.2761613]
[1772203028992,1.07907698,1960.5,1959.0,1.27090842]
[1772203029167,1.07907698,1960.5,1959.0,0.00153886]
[1772203029368,1.07907698,1960.1,1958.4,2.37355228]
[1772203029579,1.07907698,1959.8,1958.4,1.27655228]
[1772203029777,1.07907698,1959.8,1958.4,2.37355228]
[1772203029977,1.07907698,1959.8,1958.4,1.27655228]
[1772203030182,2.3547255,1959.8,1958.4,3.44999127]
[1772203030485,0.00153886,1960.0,1958.5,1.07643899]
[1772203030786,1.27558014,1959.9,1958.5,1.07643899]
[1772203031168,1.27708908,1960.0,1958.6,1.26329523]
[1772203031372,1.27808908,1960.0,1958.6,1.26329523]
[1772203031567,0.00253886,1960.0,1958.6,1.26329523]
[1772203031778,1.27805146,1960.0,1958.6,1.26329523]
[1772203032089,0.00253886,1960.0,1958.9,2.35266544]
[1772203032497,0.00253886,1960.0,1958.9,1.27622645]
[1772203032994,1.08074588,1960.0,1958.8,1.27624257]
[1772203033293,0.00253886,1960.0,1958.9,1.07643899]
[1772203033890,1.27526636,1960.4,1958.9,1.07643899]
[1772203034191,0.001,1960.7,1959.7,1.07643899]
[1772203034491,0.001,1960.7,1959.9,1.07643899]
[1772203034695,1.27443726,1961.7,1960.3,1.26329523]
[1772203034893,1.27443726,1961.7,1960.3,1.07643899]
[1772203035190,1.07820702,1961.5,1959.9,1.07643899]
[1772203035690,1.07820702,1961.4,1960.0,0.00153886]
[1772203036264,2.35287178,1961.3,1960.0,1.27704906]
[1772203036465,1.07820702,1961.1,1960.0,0.00153886]
[1772203036909,2.35274181,1961.6,1960.1,1.096]
[1772203037083,1.27450123,1961.6,1960.2,1.07643899]
[1772203037691,1.27450123,1961.6,1960.3,1.095]
[1772203038001,1.27450123,1961.6,1960.0,0.00153886]
[1772203038002,1.07820702,1961.5,1960.0,0.00153886]
[1772203038210,1.27459977,1961.4,1960.0,0.00153886]
[1772203038506,2.35280679,1961.4,1960.0,1.09653886]
[1772203038802,2.35280679,1961.4,1960.0,0.00153886]
[1772203038803,1.07820702,1961.1,1960.0,0.00153886]
[1772203039167,1.07820702,1960.7,1960.0,0.00153886]
[1772203039365,1.07820702,1961.1,1960.0,0.00153886]
[1772203040001,1.07820702,1960.9,1959.3,5.10385549]
[1772203040304,1.07820702,1960.7,1959.3,5.10385549]
[1772203040475,1.07820702,1960.7,1959.3,1.2759659]
[1772203040476,1.27511986,1960.6,1959.3,1.2759659]
[1772203040680,1.07820702,1960.5,1959.3,1.2759659]
[1772203041079,1.27511986,1960.6,1959.0,0.00153886]
[1772203041080,1.07820702,1960.1,1959.0,0.00153886]
[1772203041698,2.35332688,1960.6,1959.1,1.094]
[1772203041880,2.35332688,1960.6,1959.1,2.17043899]
[1772203042500,1.27492477,1960.9,1959.3,1.07643899]
[1772203042887,2.35313179,1960.9,1959.4,1.093]
[1772203043196,1.07820702,1960.8,1959.5,1.093]
[1772203043421,1.07820702,1960.8,1959.3,1.07643899]
[1772203043571,1.07820702,1960.8,1959.2,2.36903103]
[1772203043766,1.07820702,1960.7,1959.4,0.0011]
[1772203044098,1.07820702,1960.3,1959.0,1.27769292]
[1772203044265,1.07820702,1960.2,1959.0,1.27769292]
[1772203044466,2.35365215,1960.1,1959.3,0.0011]
[1772203044672,2.35365215,1960.1,1959.0,0.00153886]
[1772203044673,1.07820702,1960.0,1959.1,0.0011]
[1772203045401,1.27544513,1960.1,1959.1,0.0011]
[1772203045566,1.27540363,1960.2,1959.1,0.0011]
[1772203046014,1.07820702,1960.1,1959.1,0.0011]
[1772203046712,4.83271722,1960.0,1959.1,0.0011]
[1772203046888,2.35371722,1960.0,1959.1,0.0011]
[1772203047066,9.43796125,1960.4,1959.1,0.0011]
[1772203047267,1.27524994,1960.4,1959.1,0.0011]
[1772203047471,1.297,1960.7,1959.2,1.091]
[1772203047705,1.27511986,1960.6,1959.2,1.091]
[1772203047913,1.27511986,1960.6,1959.1,0.0011]
[1772203048087,1.27511986,1960.6,1959.3,1.09]
[1772203048596,1.27511986,1960.6,1959.2,5.10360314]
[1772203048799,2.35332688,1960.6,1959.2,5.10360314]
[1772203048998,1.07820702,1960.5,1959.2,1.27603103]
[1772203049207,1.27511986,1960.6,1959.2,1.27603103]
[1772203049208,1.07820702,1960.4,1959.2,1.27603103]
[1772203049593,1.27511986,1960.6,1959.2,1.27603103]
[1772203050305,1.07820702,1960.4,1959.2,1.27603103]
[1772203050800,4.301313,1960.2,1959.1,1.2771777]
[1772203050969,2.35352202,1960.3,1959.1,1.2771777]
[1772203051171,1.275315,1960.3,1959.1,1.2771777]
[1772203051370,1.2751849,1960.6,1959.1,2.35361669]
[1772203051587,1.2751849,1960.6,1959.1,1.2771777]
[1772203051794,1.2751849,1960.6,1959.2,1.07643899]
[1772203052183,2.35313179,1960.9,1959.4,1.07643899]
[1772203052382,1.07820702,1960.8,1959.1,1.2771777]
[1772203052586,1.07820702,1960.7,1959.3,1.07643899]
[1772203052806,1.27496876,1960.9,1959.5,1.07643899]
[1772203053472,1.27642145,1961.0,1959.5,1.07643899]
[1772203053888,1.27642145,1961.0,1959.4,1.27590078]
[1772203053889,0.00153886,1961.0,1959.7,1.07643899]
[1772203054099,0.00153886,1961.0,1959.9,1.07643899]
[1772203054301,0.00153886,1961.0,1960.1,1.07643899]
[1772203055006,0.00153886,1961.0,1960.2,2.35181905]
[1772203055701,0.00153886,1961.0,1960.2,1.27538006]
[1772203056104,0.00153886,1961.0,1959.9,2.36357528]
[1772203056296,0.00153886,1961.0,1959.9,1.27557528]
[1772203056609,1.07974588,1961.0,1959.5,2.36383567]
[1772203056993,1.07820702,1960.8,1959.5,1.27583567]
[1772203057385,1.07820702,1960.8,1959.4,5.1033847]
[1772203057386,13.697423,1960.7,1959.4,1.27590078]
[1772203057711,1.07820702,1960.6,1959.4,1.27590078]
[1772203058307,1.07820702,1960.6,1959.3,1.27701552]
[1772203059077,1.07820702,1960.6,1959.3,0.0011]
[1772203059078,1.06721492,1960.4,1959.3,0.0011]
[1772203059309,1.2751849,1960.5,1959.3,0.0011]
[1772203059310,1.06721492,1960.2,1959.3,0.0011]
[1772203059496,1.06721492,1960.0,1959.2,0.0011]
[1772203059885,1.06721492,1959.7,1959.2,0.0011]
[1772203060078,1.06721492,1959.7,1959.1,0.0011]
[1772203060309,1.06721492,1959.7,1959.0,0.00263886]
[1772203060818,2.49672894,1959.9,1958.0,0.00153886]
[1772203060819,1.15524061,1959.3,1958.0,0.00153886]
[1772203061111,8.193379,1959.0,1958.0,0.00153886]
[1772203061311,2.43133677,1959.1,1958.0,0.00153886]
[1772203061710,1.15524061,1958.9,1958.0,0.00153886]
[1772203061882,3.15921,1958.8,1958.0,0.00153886]
[1772203062080,1.15524061,1958.8,1958.0,0.00153886]
[1772203062283,1.27609616,1959.1,1958.0,0.00153886]
[1772203062284,1.288,1959.0,1958.0,0.00153886]
[1772203062492,1.15524061,1958.7,1958.0,0.00153886]
[1772203063093,1.27642193,1958.6,1958.0,0.00153886]
[1772203063610,2.43166254,1958.6,1958.0,0.00153886]
[1772203064217,1.15524061,1958.4,1957.1,0.0011]
[1772203064457,1.289,1958.3,1957.1,2.36143662]
[1772203064591,1.27642193,1958.6,1957.1,2.36143662]
[1772203064592,1.27642193,1958.6,1957.2,1.08295864]
[1772203065105,1.2762916,1958.8,1957.4,1.08295864]
[1772203065318,1.2762916,1958.8,1957.5,1.084]
[1772203065489,1.2762916,1958.8,1957.4,1.08295864]
[1772203065692,1.15524061,1958.6,1957.3,1.2772697]
[1772203066590,1.15524061,1958.4,1957.1,1.27849964]
[1772203066902,1.15524061,1958.2,1957.1,1.27849964]
[1772203067092,1.27674786,1958.1,1957.1,0.0011]
[1772203067290,1.15524061,1958.8,1957.2,1.083]
[1772203067509,1.27635676,1958.7,1957.3,1.08295864]
[1772203068807,1.15524061,1958.4,1957.1,0.0011]
[1772203069022,2.44224061,1958.4,1957.1,0.0011]
[1772203069320,1.27661747,1958.3,1957.2,0.0011]
[1772203069528,1.287,1958.4,1957.2,0.0011]
[1772203069904,2.56356984,1958.4,1957.2,0.0011]
[1772203070428,1.287,1958.4,1957.2,1.08405864]
[1772203070628,1.27640579,1958.7,1957.2,1.08405864]
[1772203071047,1.15524061,1958.6,1957.2,2.16505864]
[1772203071416,1.2762916,1958.8,1957.4,1.08295864]
[1772203072635,2.43153221,1958.8,1957.4,1.08295864]
[1772203072831,1.15524061,1958.5,1957.3,1.2772697]
[1772203073034,1.2762916,1958.8,1957.3,2.36022834]
[1772203073235,1.15524061,1958.6,1957.3,2.36022834]
[1772203073853,2.4317182,1958.6,1957.3,2.36022834]
[1772203074225,1.22077661,1958.4,1957.2,0.0011]
[1772203074429,1.15524061,1957.9,1957.2,0.0011]
[1772203074734,1.15524061,1957.9,1957.0,0.00263886]
[1772203075058,2.947053,1957.6,1957.0,0.00263886]
[1772203075226,1.284,1957.6,1957.0,0.00263886]
[1772203075422,2.43924061,1957.6,1957.0,0.00263886]
[1772203075629,1.2771392,1957.5,1957.0,0.00263886]
[1772203076364,5.10794663,1957.8,1957.0,0.00263886]
[1772203076573,6.26318724,1957.8,1957.0,0.00263886]
[1772203077032,1.15524061,1957.7,1957.0,0.00263886]
[1772203077230,5.10794663,1957.8,1957.0,0.00263886]
[1772203077571,6.26249625,1958.0,1957.0,0.00263886]
[1772203078159,1.15524061,1957.9,1957.0,0.00263886]
[1772203078350,4.541052,1957.8,1957.0,0.00263886]
[1772203078552,5.10725564,1958.0,1957.0,0.00263886]
[1772203078553,3.108992,1957.6,1957.0,0.00263886]
[1772203078733,1.285,1957.5,1957.0,0.00263886]
[1772203079225,1.15524061,1957.4,1956.2,1.27794206]
[1772203079622,1.15524061,1957.4,1956.1,1.27800761]
[1772203079823,1.15524061,1957.4,1956.0,5.11387949]
[1772203079824,1.15524061,1957.2,1956.0,0.00153886]
[1772203080837,4.666806,1957.1,1956.0,0.00153886]
[1772203081036,1.15524061,1957.1,1956.0,0.00153886]
[1772203081635,1.2772697,1957.3,1956.0,0.00153886]
[1772203081838,5.10907883,1957.4,1956.0,1.0844975]
[1772203082030,5.10907883,1957.4,1956.0,2.1604975]
[1772203082331,3.004303,1957.3,1956.0,1.0844975]
[1772203082662,3.004303,1957.3,1956.0,0.00153886]
[1772203082663,1.15524061,1957.3,1956.0,0.00153886]
[1772203083034,6.093383,1957.1,1956.0,0.00153886]
[1772203083227,2.43924061,1957.0,1956.0,0.00153886]
[1772203083836,1.27753078,1956.9,1956.0,0.00153886]
[1772203084029,5.11012315,1957.1,1956.0,0.00153886]
[1772203084030,1.27744767,1957.1,1956.0,0.00153886]
[1772203084557,1.2772697,1957.3,1956.0,1.0844975]
[1772203084961,1.284,1957.4,1956.2,1.08295864]
[1772203085151,1.27835639,1958.0,1956.4,1.08295864]
[1772203085349,1.27835731,1958.0,1956.6,1.08295864]
[1772203085755,0.00153886,1958.0,1957.0,1.08295864]
[1772203085953,0.001,1958.1,1956.9,1.27753078]
[1772203085954,0.001,1958.1,1957.2,1.08295864]
[1772203086565,0.001,1958.1,1957.4,1.08295864]
[1772203086939,0.001,1958.1,1957.6,1.08295864]
[1772203087441,0.001,1958.1,1957.5,1.074]
[1772203087855,0.001,1958.1,1957.6,1.27707396]
[1772203088865,0.001,1958.1,1957.6,2.35207396]
[1772203089065,0.001,1958.1,1957.6,1.27707396]
[1772203089250,0.001,1958.1,1957.6,2.35207396]
[1772203089658,5.10621561,1959.0,1957.7,1.08295864]
[1772203089659,1.27770016,1959.0,1957.7,1.08295864]
[1772203089841,1.27770016,1959.0,1957.8,1.2769435]
[1772203090041,2.37183807,1959.0,1957.8,1.2769435]
[1772203090761,2.37183807,1959.0,1957.4,3.47959804]
[1772203090762,1.09413791,1958.8,1957.4,3.47959804]
[1772203091066,1.09413791,1958.6,1957.2,2.20239359]
[1772203091283,3.68931,1958.3,1957.2,1.076]
[1772203091575,1.09413791,1958.4,1957.2,1.076]
[1772203091749,1.281,1958.7,1957.2,2.20239359]
[1772203092074,1.09413791,1958.5,1957.3,1.2772697]
[1772203092871,1.09413791,1958.1,1957.0,0.00153886]
[1772203093165,1.09413791,1958.1,1957.0,1.27898819]
[1772203093346,2.49318,1958.4,1957.0,1.27898819]
[1772203093668,1.09413791,1958.4,1957.0,1.27898819]
[1772203093866,2.37088577,1958.1,1957.0,0.00153886]
[1772203094271,1.27674786,1958.1,1957.0,0.00153886]
[1772203094453,1.27664943,1958.3,1957.0,1.12793245]
[1772203095152,2.37078734,1958.3,1957.0,0.00153886]
[1772203095458,2.370523,1958.7,1957.1,1.12639359]
[1772203095861,0.00153886,1959.0,1957.3,1.12639359]
[1772203096065,1.27770521,1959.0,1957.5,1.12639359]
[1772203096261,2.37184312,1959.0,1957.5,1.12639359]
[1772203096569,2.37184312,1959.0,1957.6,2.20039359]
[1772203096777,1.27770521,1959.0,1957.7,1.12639359]
[1772203097178,1.27770521,1959.0,1957.8,1.074]
[1772203097379,1.27770521,1959.0,1957.7,2.19939359]
[1772203097767,0.001,1958.0,1957.7,2.19939359]
[1772203097948,1.27770521,1959.0,1957.7,2.19939359]
[1772203097949,0.00153886,1959.0,1957.8,1.2769435]
[1772203098146,0.00153886,1959.0,1957.9,1.12639359]
[1772203098349,1.27594374,1959.4,1957.9,1.12639359]
[1772203098578,1.27594374,1959.4,1958.0,2.19939359]
[1772203098955,1.27574207,1959.7,1958.3,1.12639359]
[1772203099160,2.36987998,1959.7,1958.3,1.12639359]
[1772203099482,12.778472,1959.5,1958.2,2.53951718]
[1772203099665,1.09413791,1959.4,1958.0,0.00153886]
[1772203099864,1.2759659,1959.3,1958.0,1.27835193]
[1772203100673,1.27570546,1959.7,1958.2,1.12639359]
[1772203100870,2.103642,1959.8,1958.4,1.12639359]
[1772203101179,2.103642,1959.8,1958.6,1.12639359]
[1772203101482,0.00153886,1960.0,1958.6,1.12639359]
[1772203101678,1.2770627,1960.0,1958.8,1.12639359]
[1772203101995,1.2770627,1960.0,1958.9,1.27622645]
[1772203101996,0.00153886,1960.0,1958.9,1.27622645]
[1772203102154,0.00153886,1960.0,1959.0,1.12639359]
[1772203102668,0.00153886,1960.0,1958.8,1.073]
[1772203102870,0.00153886,1960.0,1958.9,1.12639359]
[1772203103057,5.10199979,1960.5,1959.1,1.12639359]
[1772203103058,1.27620525,1960.5,1959.1,1.12639359]
[1772203103257,0.001,1960.5,1959.1,1.12639359]
[1772203103452,1.27618606,1960.5,1959.3,1.12639359]
[1772203103666,0.001,1960.5,1959.5,1.19192959]
[1772203103867,0.001,1960.5,1959.7,1.12639359]
[1772203104515,0.001,1960.5,1959.5,1.27579644]
[1772203104781,0.001,1960.5,1959.3,1.27595252]
[1772203105182,1.09513791,1960.5,1959.1,2.34909616]
[1772203105795,0.001,1960.5,1959.2,1.12639359]
[1772203105991,0.001,1960.5,1959.3,2.40235949]
[1772203106870,0.001,1960.5,1959.0,0.00153886]
[1772203106871,1.09513791,1960.5,1959.0,0.00153886]
[1772203107062,1.09413791,1960.3,1959.0,1.07453886]
[1772203107588,1.09413791,1960.1,1959.0,1.07453886]
[1772203107757,1.09413791,1960.1,1959.0,0.00153886]
[1772203107958,2.3696306,1960.1,1959.0,0.00153886]
[1772203108159,2.37036536,1960.5,1959.1,2.19939359]
[1772203108365,1.27622745,1960.5,1959.3,1.12639359]
[1772203108570,0.001,1960.5,1959.3,1.12639359]
[1772203109097,6.19512876,1961.0,1959.1,1.073]
[1772203109098,0.00153886,1961.0,1959.9,1.12639359]
[1772203109291,1.27640707,1961.0,1959.9,1.12639359]
[1772203109696,1.27641653,1961.0,1959.9,2.19839359]
[1772203109989,0.001,1960.4,1959.5,6.22954599]
[1772203110310,0.001,1960.4,1959.6,2.34777056]
[1772203111006,0.001,1960.4,1959.1,1.27609616]
[1772203111217,0.001,1960.4,1959.0,1.12793245]
[1772203111508,0.001,1960.4,1959.1,1.12639359]
[1772203112210,0.001,1960.4,1959.2,1.27603103]
[1772203112498,0.001,1960.4,1959.2,2.34703103]
[1772203113483,0.001,1960.4,1959.2,1.27603103]
[1772203113911,1.09513791,1960.4,1959.0,2.34866696]
[1772203114113,1.275315,1960.3,1959.0,2.34866696]
[1772203114409,10.47137091,1960.2,1959.0,0.00153886]
[1772203114610,1.09413791,1960.1,1959.0,0.00153886]
[1772203114774,1.09413791,1960.1,1959.0,1.27769205]
[1772203114969,1.09413791,1960.1,1959.0,0.00153886]
[1772203115171,3.43294491,1959.9,1959.0,0.00153886]
[1772203115387,1.09413791,1959.9,1959.0,0.00153886]
[1772203116401,1.27564037,1959.8,1959.0,0.00153886]
[1772203116704,1.09413791,1959.6,1958.1,1.07]
[1772203117081,14.90475,1959.5,1958.0,1.27830798]
[1772203117404,1.268,1959.5,1958.0,3.47473617]
[1772203117602,2.36977828,1959.8,1958.3,1.12639359]
[1772203117908,1.27564037,1959.8,1958.4,1.12639359]
[1772203118083,1.09413791,1960.7,1958.3,1.12639359]
[1772203118283,1.532,1961.2,1958.8,6.42423812]
[1772203118284,1.10252273,1961.2,1958.8,6.42423812]
[1772203118493,1.10252273,1961.2,1958.7,20.29746676]
[1772203118494,1.10406159,1961.0,1959.3,1.11277412]
[1772203118701,1.10406159,1961.0,1959.4,1.069]
[1772203118702,1.10252273,1960.9,1959.4,1.069]
[1772203118876,1.10252273,1960.9,1959.4,1.04723812]
[1772203119083,1.10252273,1960.7,1958.9,0.065536]
[1772203119300,1.10252273,1960.7,1958.7,1.463213]
[1772203119301,1.10252273,1960.7,1959.0,2.11623812]
[1772203119600,1.10252273,1960.7,1959.0,2.11777698]
[1772203119807,1.10252273,1960.7,1959.1,1.23409436]
[1772203120299,2.30651026,1960.6,1959.1,1.04723812]
[1772203120507,1.0313904,1960.4,1959.1,1.27605039]
[1772203122299,1.275315,1960.3,1959.1,1.27605039]
[1772203122485,1.275315,1960.3,1959.1,1.27715039]
[1772203124401,1.2761849,1960.6,1959.3,1.2759659]
[1772203124914,0.001,1960.6,1959.4,1.10945851]
[1772203125100,0.001,1960.6,1959.6,1.10945851]
[1772203125408,1.27642777,1961.0,1959.8,1.10945851]
[1772203125598,0.00153886,1961.0,1959.8,1.10945851]
[1772203126105,1.27640775,1961.0,1959.8,1.10945851]
[1772203126277,0.00153886,1961.0,1959.8,1.10945851]
[1772203126480,0.00153886,1961.0,1959.9,2.38503379]
[1772203127211,0.00153886,1961.0,1960.0,1.068]
[1772203127711,0.00153886,1961.0,1960.1,1.068]
[1772203128018,0.00153886,1961.0,1959.9,2.38503379]
[1772203128188,0.00153886,1961.0,1960.1,1.068]
[1772203128509,1.27492477,1960.9,1959.8,1.068]
[1772203128710,1.0313904,1960.8,1959.7,2.34367135]
[1772203129205,1.27492477,1960.9,1959.7,2.34367135]
[1772203130312,1.27492477,1960.9,1959.5,6.21280051]
[1772203130313,1.0313904,1960.6,1959.1,1.0691]
[1772203130611,1.0313904,1960.2,1959.1,1.0691]
[1772203130807,1.0313904,1960.0,1959.1,0.0011]
[1772203132308,1.261,1960.2,1959.2,1.067]
[1772203132610,1.27544513,1960.1,1959.2,2.34297764]
[1772203132807,1.27544513,1960.1,1959.2,2.34302984]
[1772203133209,1.27544513,1960.1,1959.1,1.0681]
[1772203133404,1.0313904,1960.0,1959.1,1.0681]
[1772203133781,1.0313904,1960.0,1959.1,0.0011]
[1772203134541,1.27557528,1959.9,1959.1,0.0011]
[1772203136614,1.0313904,1959.7,1959.1,0.0011]
[1772203136810,1.0313904,1959.7,1958.8,0.0011]
[1772203137284,1.0313904,1959.7,1958.8,1.27738627]
[1772203137681,5.10383999,1960.0,1959.2,0.0011]
[1772203138631,5.10383999,1960.0,1959.2,1.27713103]
[1772203138982,5.10383999,1960.0,1959.2,0.0011]
[1772203140224,6.13523039,1960.0,1959.2,0.0011]
[1772203140428,1.0313904,1959.7,1959.2,0.0011]
[1772203140613,2.30716096,1959.6,1959.2,0.0011]
[1772203140809,2.30716096,1959.6,1958.9,0.0011]
[1772203140810,1.26,1959.5,1958.0,0.00153886]
[1772203141102,1.26,1959.5,1958.1,1.10945851]
[1772203141308,1.27577056,1959.6,1958.2,2.4891301]
[1772203141517,3.74891824,1959.8,1958.3,1.10945851]
[1772203141705,0.00153886,1960.0,1958.7,1.10945851]
[1772203141888,1.27710191,1960.0,1958.8,2.17245851]
[1772203142084,1.27710191,1960.0,1958.9,1.063]
[1772203142615,1.0313904,1959.2,1958.1,2.33974172]
[1772203142919,1.0313904,1959.1,1958.1,2.33974196]
[1772203143102,1.0313904,1959.1,1958.1,1.27674196]
[1772203143305,2.30722607,1959.5,1958.1,1.27674196]
[1772203143491,2.30722607,1959.5,1958.2,1.10945851]
[1772203144396,2.30722607,1959.5,1958.0,1.27829179]
[1772203144397,1.0313904,1959.4,1958.0,1.27829179]
[1772203144602,1.0313904,1959.2,1958.0,0.00153886]
[1772203144804,1.0313904,1959.0,1958.0,0.00153886]
[1772203145219,1.2759659,1959.3,1958.0,1.27834225]
[1772203145520,1.2759659,1959.3,1958.1,1.10945851]
[1772203145698,6.13525402,1959.4,1958.0,1.27834225]
[1772203145699,1.27557528,1959.9,1958.3,1.10945851]
[1772203145911,1.27557528,1959.9,1958.5,1.10945851]
[1772203146130,2.30696568,1959.9,1958.5,1.10945851]
[1772203146735,0.00153886,1960.0,1958.9,1.10945851]